Cogmind - Beta 14 @@@ ROGUE MODE // 2024.08.18 @ 13:24:31 Player: Afromullet Result: Self-destructed Performance ------------- Evolutions (1) 500 Regions Visited (2) 400 Robots Destroyed (14) 70 Value Destroyed (356) 356 Prototype IDs (0) 0 Alien Tech Used (0) 0 Bonus (0) 0 TOTAL SCORE: 1326 Bonus ------- None Cogmind --------- Core Integrity 315/400 Matter 114/300 Energy 14/100 System Corruption 0% Temperature Cool (0) Movement Walking (120) Location -9/Materials Parts ------- > --- POWER (1) -------- (None) > --- PROPULSION (2) --- Aluminum Leg Aluminum Leg > --- UTILITY (3) ------ Heat Sink Small Storage Unit ECM Suite > --- WEAPON (3) ------- Small Laser Light Assault Rifle > --- INVENTORY (8) ---- Ion Engine Ion Engine Light Ion Engine Grenade Launcher Peak State ------------ > --- POWER ------------ Light Ion Engine > --- PROPULSION ------- Aluminum Leg Aluminum Leg > --- UTILITY ---------- Heat Sink Small Storage Unit ECM Suite > --- WEAPON ----------- Medium Laser Small Laser Assault Rifle > --- INVENTORY -------- Ion Engine Ion Engine Aluminum Leg Aluminum Leg Medium Laser Grenade Launcher [Rating: 9] Favorites ----------- Power Light Ion Engine Engine Light Ion Engine Propulsion Aluminum Leg Leg Aluminum Leg Wheel Compact Wheel Flight Unit Flight Unit Utility Small Storage Unit Device ECM Suite Storage Small Storage Unit Weapon Medium Laser Energy Gun Medium Laser Ballistic Gun Assault Rifle Launcher Grenade Launcher Build | -11 -10 -9 ------- Run | Yrd Mat Mat Slots Evolved 2 | . . 2 Power . | . . . Propulsion . | . . . Utility 1 | . . 1 Weapon 1 | . . 1 Parts Attached 26 | 7 4 15 Power 2 | 1 . 1 Engine 2 | 1 . 1 Core . | . . . Reactor . | . . . Propulsion 9 | 3 2 4 Treads . | . . . Leg 7 | 2 2 3 Wheel 1 | 1 . . Hover . | . . . Flight 1 | . . 1 Utility 3 | 1 1 1 Device 2 | . 1 1 Storage 1 | 1 . . Processor . | . . . Hackware . | . . . Protection . | . . . Artifact . | . . . Weapon 12 | 2 1 9 Energy Gun 7 | 2 . 5 Energy Cannon . | . . . Ballistic Gun 3 | . 1 2 Ballistic Cannon . | . . . Launcher 2 | . . 2 Special Weapon . | . . . Impact Weapon . | . . . Slashing Weapon . | . . . Piercing Weapon . | . . . Special Melee Weapon . | . . . Unidentified Prototypes . | . . . Parts Lost 1 | . . 1 Power . | . . . Propulsion . | . . . Utility . | . . . Weapon 1 | . . 1 Highest Loss Streak 1 | . . 1 To Critical Strikes . | . . . Average Slot Usage (%) 92 | . 92 90 Engine 12 | . 14 9 Leg 25 | . 28 20 Device 12 | . 7 22 Storage 12 | . 14 11 Energy Gun 20 | . 21 20 Ballistic Gun 6 | . 6 6 Peak Build Rating 9 | 6 7 9 Average Rating 6 | 4 6 8 On Entrance 4 | . 6 7 Naked Turns . | . . . Heaviest Build 18 | 11 14 18 Greatest Support 20 | 20 20 20 Greatest Overweight (x) 3 | 3 . 2 Average Overweight (x) . | . . . Largest Inventory Capacity 8 | 8 8 8 Average Capacity 7 | 6 8 8 Most Carried 8 | 4 8 8 Average Carried 6 | 2 6 6 Final Capacity 8 | 8 8 8 Final Carried 8 | 4 8 4 Class Distribution -------------------- 76% | Mutant 23% | Gunner Dominant Class ---------------- Mutant | -10/Materials Mutant | -9/Materials Resources | -11 -10 -9 ----------- Run | Yrd Mat Mat Matter Collected 345 | 152 153 40 Remotely . | . . . Salvage Created 345 | . 186 159 Parts 30 | . 12 18 Haulers Intercepted . | . . . Recyclers Shooed . | . . . Parts Field Recycled . | . . . Retrieved Matter . | . . . Parts Self-Destructed . | . . . Prevented . | . . . Kills | -11 -10 -9 ------- Run | Yrd Mat Mat Combat Hostiles Destroyed 14 | . 4 10 Guns 6 | . 4 2 AOE 7 | . . 7 Classes Destroyed 3 | . 1 2 Swarmer 7 | . . 7 Grunt 5 | . 4 1 Sentry 2 | . . 2 Best Kill Streak 6 | . 2 6 Combat Bots Only 6 | . 2 6 Max Kills in Single Turn 3 | . 1 3 Gunslinging . | . . . Exploded 3 | . . 3 Melee . | . . . Uniques/NPCs Destroyed . | . . . Combat | -11 -10 -9 -------- Run | Yrd Mat Mat Hostile Shots Fired 64 | . 16 48 Missed 20 | . 4 16 Damage Taken 508 | . 173 335 Core 119 | . 34 85 Absorbed by Shields . | . . . Core Remaining (%) 93 | 100 86 . Volleys Fired 23 | . 11 12 Largest 3 | . 2 3 Hottest 140 | . 90 140 Shots Fired 56 | . 22 34 Gun 52 | . 22 30 Cannon . | . . . Launcher 4 | . . 4 Special . | . . . Kinetic 12 | . 5 7 Thermal 40 | . 17 23 Explosive 4 | . . 4 Electromagnetic . | . . . Robot Hit Streak 14 | . 7 14 Robot Miss Streak 1 | . 1 1 Penetration Max . | . . . Secondary Targets 1 | . . 1 Max Gunslinging Chain 1 | . . 1 Shots Hit Robots 31 | . 16 15 Core Hits 25 | . 10 15 Critical Kills . | . . . Critical Parts Destroyed . | . . . Critical Strikes 2 | . . 2 Burn 2 | . . 2 Melee Attacks . | . . . Impact . | . . . Slashing . | . . . Piercing . | . . . Sneak Attacks . | . . . Combat Hostiles . | . . . Follow-up Attacks . | . . . Damage Inflicted 719 | . 194 525 Guns 392 | . 194 198 Cannons . | . . . Explosions 327 | . . 327 Melee . | . . . Ramming . | . . . Kinetic 113 | . 63 50 Thermal 279 | . 131 148 Explosive 327 | . . 327 Electromagnetic . | . . . Impact . | . . . Slashing . | . . . Piercing . | . . . Highest Corruption . | . . . Average Corruption . | . . . Corruption Purged . | . . . Corruption Blocked . | . . . Overload Shots . | . . . Overflow Damage 2 | . . 2 Projectiles . | . . . Explosions 2 | . . 2 Melee . | . . . Knockbacks . | . . . Impact . | . . . Kinetic . | . . . Secondary . | . . . Self-Inflicted Damage . | . . . Shots . | . . . Rammed . | . . . Targets Rammed . | . . . Kicked . | . . . Crushed . | . . . Highest Temperature 117 | . 117 51 Average Temperature 41 | . 54 21 Received Heat Transfer 162 | . 96 66 Siege Activations . | . . . Robots Corrupted . | . . . Combat Hostiles . | . . . Parts Fried . | . . . Impact Corruptions . | . . . Robots Melted 1 | . . 1 Combat Hostiles 1 | . . 1 Parts Melted 2 | . . 2 Heat Transferred 939 | . 359 580 Parts Sabotaged . | . . . Parts Stolen . | . . . Parts Stripped . | . . . Power Chain Reactions . | . . . Alert | -11 -10 -9 ------- Run | Yrd Mat Mat Peak Influence 339 | . 101 339 Initial 42 | . . 42 Average 85 | . 53 190 Maximum Alert Level 1 | . . 1 Low Security (%) 85 | 100 100 49 Level 1 14 | . . 50 Level 2 . | . . . Level 3 . | . . . Level 4 . | . . . Level 5 . | . . . High Security . | . . . Max Security . | . . . Squads Dispatched 1 | . . 1 Investigation . | . . . Extermination . | . . . Reinforcement 1 | . . 1 Assault . | . . . Garrison . | . . . Intercept . | . . . Searches Triggered . | . . . Construction Impeded . | . . . Haulers Reinforced . | . . . Active Scanning Responses . | . . . Cargo Convoy Interrupts . | . . . Stealth | -11 -10 -9 --------- Run | Yrd Mat Mat Distress Signals 1 | . . 1 Communications Jammed . | . . . Distress Signals . | . . . Times Spotted 18 | . 6 12 Peak Tracking Total 7 | . 2 7 Tactical Retreats 2 | . 1 1 Traps | -11 -10 -9 ------- Run | Yrd Mat Mat Traps Triggered 2 | . . 2 Indirectly . | . . . Trap Hack Attempts . | . . . Triggered . | . . . Disarmed . | . . . Reprogrammed . | . . . Reused . | . . . Traps Extracted . | . . . Installed . | . . . Triggered . | . . . Machines | -11 -10 -9 ---------- Run | Yrd Mat Mat Machines Disabled . | . . . Max in Single Turn . | . . . Machines Repaired . | . . . Machines Dismantled . | . . . Machines Sabotaged . | . . . Overloaded Fab Kills . | . . . Hacking | -11 -10 -9 --------- Run | Yrd Mat Mat Machines Accessed . | . . . Terminals . | . . . Fabricators . | . . . Repair Stations . | . . . Recycling Units . | . . . Scanalyzers . | . . . Garrison Access . | . . . Total Hacks . | . . . Successful . | . . . Failed . | . . . Catastrophic . | . . . Database Lockouts . | . . . Manual . | . . . Terminals . | . . . Fabricators . | . . . Repair Stations . | . . . Recycling Units . | . . . Scanalyzers . | . . . Garrison Access . | . . . Terminal Hacks . | . . . Fabricator Hacks . | . . . Repair Station Hacks . | . . . Recycling Unit Hacks . | . . . Scanalyzer . | . . . Garrison Access Hacks . | . . . Unauthorized Hacks . | . . . Terminals . | . . . Fabricators . | . . . Repair Stations . | . . . Recycling Units . | . . . Scanalyzers . | . . . Garrison Access . | . . . Data Cores Recovered . | . . . Used . | . . . Hacking Detections . | . . . Full Trace Events . | . . . Feedback Events . | . . . Feedback Blocked . | . . . Robot Schematics Acquired . | . . . Robots Built . | . . . Authchips . | . . . Time . | . . . Total Robot Build Rating . | . . . Part Schematics Acquired . | . . . Parts Built . | . . . Authchips . | . . . Time . | . . . Total Part Build Rating . | . . . Parts Repaired . | . . . Time . | . . . Parts Recycled . | . . . Recycled Matter . | . . . Retrieved Matter . | . . . Retrieved Components . | . . . Parts Scanalyzed . | . . . Part Schematics Acquired . | . . . Parts Damaged . | . . . Bothacking | -11 -10 -9 ------------ Run | Yrd Mat Mat Used RIF Installer . | . . . Robots Hacked . | . . . Non-combat . | . . . Combat . | . . . Robot Hacks Applied . | . . . Relay Couplers Released . | . . . Fabnet Peak Effective % . | . . . Robots Rewired . | . . . Allies Hacked . | . . . Hacks Repelled . | . . . Allies | -11 -10 -9 -------- Run | Yrd Mat Mat Total Allies . | . . . Largest Group . | . . . Highest-Rated Group . | . . . Highest-Rated Ally . | . . . Total Orders . | . . . Ally Attacks . | . . . Total Damage . | . . . Kills . | . . . Allies Corrupted . | . . . Allies Melted . | . . . Intel | -11 -10 -9 ------- Run | Yrd Mat Mat Robot Analysis Total . | . . . Derelict Logs Recovered . | . . . Drone Launches . | . . . Drone Recoveries . | . . . Exploration | -11 -10 -9 ------------- Run | Yrd Mat Mat Turns Passed 389 | 66 208 115 Spaces Moved 206 | 45 123 38 Core 16 | 12 . 4 Treads . | . . . Legs 182 | 25 123 34 Wheels 8 | 8 . . Hover . | . . . Flight . | . . . Fastest Speed 50 | 50 120 120 Average Speed 120 | 116 120 125 Slowest Speed 200 | 200 120 190 Overloaded Moves . | . . . Propulsion Burnouts . | . . . Robots Hopped . | . . . Cave-ins Triggered . | . . . Exploration Rate (%) 12 | 4 23 10 Regions Visited 2 Branch Regions . Pre-discovered Areas . | . . . Known Exits Taken . | . . . Unknown Exits Taken 2 | 1 1 . Scrap Searched . | . . . Spaces Dug . | . . . Terrain Destroyed 26 | . . 26 Melee . | . . . Projectile . | . . . AOE 26 | . . 26 Terrain Rammed . | . . . Walls Destroyed . | . . . Machines Disabled . | . . . Actions | -11 -10 -9 --------- Run | Yrd Mat Mat Total 294 | 55 163 76 Wait 20 | . 14 6 Move 204 | 44 122 38 Hop . | . . . Pick Up 11 | 3 6 2 Fast Attach 11 | 7 2 2 Attach 6 | . . 6 Detach 2 | 1 1 . Swap 9 | . 2 7 Drop 8 | . 5 3 Fire 23 | . 11 12 Melee . | . . . Ram . | . . . Kick . | . . . Crush . | . . . Escape Stasis . | . . . Rewire . | . . . Trap . | . . . Miscellaneous . | . . . Route ------- -11/Scrapyard -10/Materials -9/Materials (discovered 1 exit: [*Sto]) History --------- Turn | Location | Event 7 | -11/Scrapyard | Discovered new exit (range 15) 67 | -11/Scrapyard | Entered Materials 262 | -10/Materials | Discovered new exit (range 8) 275 | -10/Materials | Entered another Materials area 275 | -9/Materials | Evolved 2 slots: Utility x1, Weapon x1 356 | -9/Materials | Discovered new exit (range 10) 390 | -9/Materials | Self-destructed Last Messages --------------- U-05 Engineer builds a Wall. Acquired 4 matter. Triggered Blade Trap. Massive razor-sharp blades shoot up from within the floor. Med. Laser severed. Aluminum Leg severed. Sml. Laser severed. U-05 Engineer lays Concrete. Triggered Blade Trap. Massive razor-sharp blades shoot up from within the floor. Med. Laser severed. Ion Engine severed. Aluminum Leg severed. U-05 Engineer lays Concrete. U-05 Engineer builds a Wall. U-05 Engineer lays Concrete. Acquired Flight Unit. U-05 Engineer lays Concrete. Dropped Flight Unit. U-05 Engineer lays Concrete. Map ----- +----------------------------------------------------+ | ????????????????????????????????????????????? | | ????????????????????????????????????????????? | | ????????????????????????????????????????????? | | ????????????????????????????????????????????? | | ????????????????????????????????????????????? | | ????????????????????????????????????????????? | | ????????????????????????????????????????????? | | ????????????????????????????????????????????? | | ????????????????????????????????????????????? | | ????????????????????????????????????????????? | | ????????????????????????????????????????????? | | ????????????????????????????????????????????? | | ????????????????????????????????????????????? | | ????????????????????????????????????????????? | | ????????????????????????????????????????????? | | ???????????????##+??????####?####???????????? | | ????????###????# ?????? ? #???????????? | | ???????? ???# ????? #???????????? | | ???????# *** ??# ?#??"" """ # ??????????? | | ???????? *** ?+ ?# ?"" """ # ??????????? | | ??????????* # ## """ """ ???????????? | | ???????????? # ???????????? | | ?????????????# ? ????????????? | | ?????????????# u=###+####+## ????????????? | | ?????????????# =% % ^ ! #########?????? | | ?????????????## <%[@ =^[= a ??? | | ?????????????# [u u *[[ #########?????? | | ?????????????## ###### ##????????????? | | ??????????????########??### % ##????????????? | | ??????????????????????????# ==#?????????????? | | ?????????????????????????## = ##????????????? | | ????????################## ##########???? | | ????????# ??? | | ????????# ?? | | ????????# ?? | | ????????# ##########"### ############?? | | ????????# #??????? ?#######????????????? | | ????????# #????? ! ????????????????????? | | ????????# #???? ???????????????????? | | ????????#####??? """ """ ???????????????????? | | ???????????????? """ """ #??????????????????? | | ???????????????????" """ #??????????????????? | | ?????????????????? #??????????????????? | | ??????????????????""T""" #??????????????????? | | ??????????????????##????##??????????????????? | | ????????????????????????????????????????????? | | ????????????????????????????????????????????? | | ????????????????????????????????????????????? | | ????????????????????????????????????????????? | | ????????????????????????????????????????????? | +----------------------------------------------------+ Best States ------------- Heat Dissipation 38 Energy Generation 10 Energy Capacity 250 Matter Stores 290 Matter Capacity 300 Sight Range 16 Terrain Scan Density 10 ECM Strength 1 Evasion (%) 55 Item Schematics ----------------- None Robot Schematics ------------------ None Fabricated ------------ Nothing Alien Tech Used ----------------- None Achievements -------------- None Challenges ------------ None Game ------ Seed CouplerSingularityCloak Manual? 0 Play Time 00:06:22 Cumulative 33.6 hours Start 2024.08.18 @ 13:15:33 End 2024.08.18 @ 13:24:31 Sessions 1 Manual Loads 0 Difficulty Rogue Special Mode None Game No. 105 Rogue 98 Adventurer 7 Explorer 0 Win Type - Total 0 Types 0/0/0/0/0/0/0/0/0 Lore% 1 Gallery% 22 Achievement% 12 Wizard Run 0 Options --------- Layout 1 ASCII 0 Keyboard 0 Movement Mouse Keybinds 0 Fullscreen 0 Font 20/SmallcapsGlow Map View 64x42 Zoom Use 0% Tactical HUD 0 Map Filters NONE Filters NONE Steam 1 RUN: a922a069-507a-459e-9354-7ee1741f8717